[Event "Titled Tuesday Blitz January 31 Late 2023"]
[White "Andreassen, Lars"]
[Black "Poeta, Caio Medeiros"]
[WhiteFideId "1504878"]
[BlackFideId "2142660"]
[WhiteElo "2168"]
[BlackElo "2088"]
[Result "1-0"]
[Round "03"]
[TimeControl "180+2"]
[Date "2023.01.31"]
[WhiteClock "0:00:38"]
[BlackClock "0:01:01"]

1. d4 {[%clk 0:03:00]}  Nf6 {[%clk 0:02:55]} 2. Nf3 {[%clk 0:03:00]}  e6 {[%clk 0:02:53]} 3. Bg5 {[%clk 0:03:01]}  Be7 {[%clk 0:02:52]} 4. Nc3 {[%clk 0:02:57]}  d5 {[%clk 0:02:52]} 5. Bxf6 {[%clk 0:02:56]}  Bxf6 {[%clk 0:02:51]} 6. e4 {[%clk 0:02:57]}  O-O {[%clk 0:02:50]} 7. e5 {[%clk 0:02:56]}  Be7 {[%clk 0:02:50]} 8. Ne2 {[%clk 0:02:54]}  c5 {[%clk 0:02:49]} 9. c3 {[%clk 0:02:55]}  Nc6 {[%clk 0:02:49]} 10. Ng3 {[%clk 0:02:52]}  f6 {[%clk 0:02:49]} 11. Bd3 {[%clk 0:02:45]}  cxd4 {[%clk 0:02:48]} 12. cxd4 {[%clk 0:02:45]}  fxe5 {[%clk 0:02:48]} 13. dxe5 {[%clk 0:02:44]}  Bb4+ {[%clk 0:02:30]} 14. Kf1 {[%clk 0:02:44]}  Bc5 {[%clk 0:02:24]} 15. h4 {[%clk 0:02:42]}  Nxe5 {[%clk 0:02:16]} 16. Bxh7+ {[%clk 0:01:55]}  Kh8 {[%clk 0:02:05]} 17. Rc1 {[%clk 0:01:28]}  Nxf3 {[%clk 0:01:55]} 18. gxf3 {[%clk 0:01:24]}  Bxf2 {[%clk 0:01:47]} 19. Kxf2 {[%clk 0:01:20]}  Qb6+ {[%clk 0:01:43]} 20. Kg2 {[%clk 0:01:16]}  Kxh7 {[%clk 0:01:42]} 21. Qd3+ {[%clk 0:01:05]}  Kg8 {[%clk 0:01:41]} 22. h5 {[%clk 0:01:03]}  Qxb2+ {[%clk 0:01:39]} 23. Rc2 {[%clk 0:01:03]}  Qf6 {[%clk 0:01:39]} 24. h6 {[%clk 0:01:02]}  g6 {[%clk 0:01:38]} 25. h7+ {[%clk 0:01:02]}  Kg7 {[%clk 0:01:25]} 26. Rc7+ {[%clk 0:00:59]}  Kh8 {[%clk 0:01:24]} 27. Rh6 {[%clk 0:00:57]}  b6 {[%clk 0:01:05]} 28. Rxg6 {[%clk 0:00:54]}  Qa1 {[%clk 0:01:05]} 29. Rg8+ {[%clk 0:00:38]}  Rxg8 {[%clk 0:01:00]} 30. hxg8=Q+ {[%clk 0:00:38]}  Kxg8 {[%clk 0:01:01]} 31. Qg6+ {[%clk 0:00:38]}  Kf8 {[%clk 0:01:01]} 32. Qf7# {[%clk 0:00:38]} 1-0


[Site "https://www.chess.com"]

[Event "Titled Tuesday Blitz January 31 Late 2023"]
[White "Kaplan, Avi Harrison"]
[Black "Good, Daniel"]
[WhiteFideId "30934559"]
[BlackFideId "1302388"]
[WhiteElo "2146"]
[BlackElo "2141"]
[Result "0-1"]
[Round "03"]
[TimeControl "180+2"]
[Date "2023.01.31"]
[WhiteClock "0:00:08"]
[BlackClock "0:00:11"]

1. b3 {[%clk 0:02:55]}  d5 {[%clk 0:02:58]} 2. Bb2 {[%clk 0:02:55]}  c5 {[%clk 0:02:58]} 3. Nf3 {[%clk 0:02:45]}  Nc6 {[%clk 0:02:58]} 4. e3 {[%clk 0:02:45]}  Nf6 {[%clk 0:02:56]} 5. c4 {[%clk 0:02:45]}  d4 {[%clk 0:02:50]} 6. exd4 {[%clk 0:02:44]}  cxd4 {[%clk 0:02:50]} 7. b4 {[%clk 0:02:43]}  Nxb4 {[%clk 0:02:45]} 8. Nxd4 {[%clk 0:02:40]}  e5 {[%clk 0:02:12]} 9. Qa4+ {[%clk 0:02:31]}  Bd7 {[%clk 0:02:10]} 10. Nb5 {[%clk 0:02:16]}  a6 {[%clk 0:02:10]} 11. a3 {[%clk 0:02:12]}  axb5 {[%clk 0:02:07]} 12. Qb3 {[%clk 0:02:12]}  Nc6 {[%clk 0:01:54]} 13. cxb5 {[%clk 0:02:11]}  Be6 {[%clk 0:01:49]} 14. Qf3 {[%clk 0:01:38]}  Nd4 {[%clk 0:01:36]} 15. Bxd4 {[%clk 0:01:30]}  Qxd4 {[%clk 0:01:35]} 16. Nc3 {[%clk 0:01:28]}  Bc5 {[%clk 0:01:23]} 17. a4 {[%clk 0:01:10]}  Rd8 {[%clk 0:01:21]} 18. Rd1 {[%clk 0:00:57]}  Bb3 {[%clk 0:01:14]} 19. Ne2 {[%clk 0:00:55]}  Qxf2+ {[%clk 0:01:08]} 20. Qxf2 {[%clk 0:00:53]}  Bxf2+ {[%clk 0:01:09]} 21. Kxf2 {[%clk 0:00:54]}  Bxd1 {[%clk 0:01:09]} 22. Nc3 {[%clk 0:00:54]}  Bb3 {[%clk 0:01:03]} 23. Ke1 {[%clk 0:00:46]}  O-O {[%clk 0:01:01]} 24. Be2 {[%clk 0:00:47]}  Nd5 {[%clk 0:00:58]} 25. Rf1 {[%clk 0:00:48]}  Nxc3 {[%clk 0:00:56]} 26. dxc3 {[%clk 0:00:48]}  Rc8 {[%clk 0:00:54]} 27. Kd2 {[%clk 0:00:48]}  Rfd8+ {[%clk 0:00:54]} 28. Kc1 {[%clk 0:00:49]}  Rxc3+ {[%clk 0:00:50]} 29. Kb2 {[%clk 0:00:49]}  Rc2+ {[%clk 0:00:50]} 30. Kxb3 {[%clk 0:00:50]}  Rxe2 {[%clk 0:00:51]} 31. Kb4 {[%clk 0:00:50]}  b6 {[%clk 0:00:42]} 32. Rc1 {[%clk 0:00:50]}  Rxg2 {[%clk 0:00:38]} 33. Rc6 {[%clk 0:00:46]}  e4 {[%clk 0:00:37]} 34. Rxb6 {[%clk 0:00:46]}  e3 {[%clk 0:00:37]} 35. Rc6 {[%clk 0:00:43]}  e2 {[%clk 0:00:37]} 36. Rc1 {[%clk 0:00:44]}  f5 {[%clk 0:00:34]} 37. b6 {[%clk 0:00:43]}  Rg4+ {[%clk 0:00:24]} 38. Kb5 {[%clk 0:00:39]}  Re4 {[%clk 0:00:24]} 39. Re1 {[%clk 0:00:16]}  f4 {[%clk 0:00:22]} 40. Kc6 {[%clk 0:00:16]}  Rc4+ {[%clk 0:00:18]} 41. Kb7 {[%clk 0:00:16]}  f3 {[%clk 0:00:18]} 42. a5 {[%clk 0:00:16]}  f2 {[%clk 0:00:17]} 43. Rxe2 {[%clk 0:00:17]}  f1=Q {[%clk 0:00:18]} 44. Re7 {[%clk 0:00:15]}  Qf3+ {[%clk 0:00:17]} 45. Ka6 {[%clk 0:00:15]}  Ra8+ {[%clk 0:00:15]} 46. Ra7 {[%clk 0:00:14]}  Qc6 {[%clk 0:00:10]} 47. h4 {[%clk 0:00:06]}  Ra4 {[%clk 0:00:09]} 48. Rxa8+ {[%clk 0:00:05]}  Qxa8+ {[%clk 0:00:09]} 49. Kb5 {[%clk 0:00:06]}  Qxa5+ {[%clk 0:00:09]} 50. Kc6 {[%clk 0:00:06]}  Rc4+ {[%clk 0:00:10]} 51. Kb7 {[%clk 0:00:07]}  Rb4 {[%clk 0:00:10]} 52. Kc8 {[%clk 0:00:06]}  Rxb6 {[%clk 0:00:10]} 53. h5 {[%clk 0:00:07]}  Qa8+ {[%clk 0:00:10]} 54. Kc7 {[%clk 0:00:07]}  Qa7+ {[%clk 0:00:11]} 55. Kd8 {[%clk 0:00:08]}  Rb8# {[%clk 0:00:11]} 0-1


[Site "https://www.chess.com"]

[Event "Titled Tuesday Blitz January 31 Late 2023"]
[White "Todev, Simeon"]
[Black "Tanenbaum, Zachary"]
[WhiteFideId "2925133"]
[BlackFideId "2060850"]
[WhiteElo "2033"]
[BlackElo "2261"]
[Result "1-0"]
[Round "03"]
[TimeControl "180+2"]
[Date "2023.01.31"]
[WhiteClock "0:00:03"]
[BlackClock "0:00:06"]

1. e4 {[%clk 0:03:00]}  e5 {[%clk 0:03:00]} 2. Nf3 {[%clk 0:03:00]}  Nc6 {[%clk 0:03:00]} 3. d4 {[%clk 0:03:01]}  exd4 {[%clk 0:03:00]} 4. Bc4 {[%clk 0:03:02]}  Nf6 {[%clk 0:03:00]} 5. O-O {[%clk 0:03:02]}  Nxe4 {[%clk 0:03:00]} 6. Re1 {[%clk 0:03:02]}  d5 {[%clk 0:03:00]} 7. Bxd5 {[%clk 0:03:03]}  Qxd5 {[%clk 0:03:01]} 8. Nc3 {[%clk 0:03:04]}  Qa5 {[%clk 0:03:00]} 9. Nxe4 {[%clk 0:03:04]}  Be6 {[%clk 0:03:00]} 10. Neg5 {[%clk 0:03:05]}  O-O-O {[%clk 0:03:00]} 11. Nxe6 {[%clk 0:03:06]}  fxe6 {[%clk 0:03:01]} 12. Rxe6 {[%clk 0:03:07]}  Qh5 {[%clk 0:02:58]} 13. Bg5 {[%clk 0:03:02]}  Rd7 {[%clk 0:02:47]} 14. Qe2 {[%clk 0:02:32]}  Bd6 {[%clk 0:02:45]} 15. Bh4 {[%clk 0:02:28]}  d3 {[%clk 0:02:03]} 16. cxd3 {[%clk 0:02:16]}  Nd4 {[%clk 0:02:03]} 17. Nxd4 {[%clk 0:02:06]}  Bxh2+ {[%clk 0:02:03]} 18. Kh1 {[%clk 0:01:35]}  Qxh4 {[%clk 0:02:04]} 19. Nf3 {[%clk 0:01:28]}  Qd8 {[%clk 0:01:13]} 20. Kxh2 {[%clk 0:01:12]}  Rxd3 {[%clk 0:01:14]} 21. Ne5 {[%clk 0:00:57]}  Rd2 {[%clk 0:01:07]} 22. Qg4 {[%clk 0:00:53]}  h5 {[%clk 0:01:06]} 23. Qh3 {[%clk 0:00:39]}  Kb8 {[%clk 0:00:53]} 24. Nf7 {[%clk 0:00:37]}  Qf8 {[%clk 0:00:48]} 25. Nxh8 {[%clk 0:00:32]}  a6 {[%clk 0:00:40]} 26. Qe3 {[%clk 0:00:24]}  Rd8 {[%clk 0:00:32]} 27. Ng6 {[%clk 0:00:24]}  Qf7 {[%clk 0:00:30]} 28. Re1 {[%clk 0:00:23]}  Qd7 {[%clk 0:00:24]} 29. Re8 {[%clk 0:00:21]}  Qd6+ {[%clk 0:00:24]} 30. Qe5 {[%clk 0:00:15]}  Rxe8 {[%clk 0:00:21]} 31. Qxd6 {[%clk 0:00:11]}  Rxe1 {[%clk 0:00:22]} 32. Qd8+ {[%clk 0:00:11]}  Ka7 {[%clk 0:00:22]} 33. Qd4+ {[%clk 0:00:10]}  Kb8 {[%clk 0:00:20]} 34. Qxg7 {[%clk 0:00:10]}  h4 {[%clk 0:00:20]} 35. Nxh4 {[%clk 0:00:10]}  a5 {[%clk 0:00:20]} 36. f4 {[%clk 0:00:10]}  a4 {[%clk 0:00:20]} 37. f5 {[%clk 0:00:10]}  a3 {[%clk 0:00:20]} 38. bxa3 {[%clk 0:00:10]}  Re4 {[%clk 0:00:18]} 39. Nf3 {[%clk 0:00:07]}  b5 {[%clk 0:00:19]} 40. f6 {[%clk 0:00:08]}  b4 {[%clk 0:00:19]} 41. axb4 {[%clk 0:00:07]}  Rf4 {[%clk 0:00:18]} 42. f7 {[%clk 0:00:07]}  Kb7 {[%clk 0:00:16]} 43. f8=Q {[%clk 0:00:06]}  Rc4 {[%clk 0:00:14]} 44. Qe5 {[%clk 0:00:04]}  Rc6 {[%clk 0:00:09]} 45. Qb5+ {[%clk 0:00:04]}  Ka7 {[%clk 0:00:09]} 46. Qd5 {[%clk 0:00:04]}  Rh6+ {[%clk 0:00:08]} 47. Kg1 {[%clk 0:00:03]}  Rc6 {[%clk 0:00:09]} 48. Qfc5+ {[%clk 0:00:02]}  Rb6 {[%clk 0:00:07]} 49. Qxc7+ {[%clk 0:00:02]}  Ka6 {[%clk 0:00:08]} 50. b5+ {[%clk 0:00:02]}  Ka5 {[%clk 0:00:07]} 51. Qdc6 {[%clk 0:00:02]}  Kb4 {[%clk 0:00:05]} 52. Qc3+ {[%clk 0:00:03]}  Ka4 {[%clk 0:00:06]} 53. Qa7+ {[%clk 0:00:03]}  Kxb5 {[%clk 0:00:06]} 54. Qaa5# {[%clk 0:00:03]} 1-0


[Site "https://www.chess.com"]

[Event "Titled Tuesday Blitz January 31 Late 2023"]
[White "Kalajzic, Ivan"]
[Black "Al-Tarboush, Ward"]
[WhiteFideId "14506378"]
[BlackFideId "7601450"]
[WhiteElo "2062"]
[BlackElo "2256"]
[Result "0-1"]
[Round "03"]
[TimeControl "180+2"]
[Date "2023.01.31"]
[WhiteClock "0:00:01"]
[BlackClock "0:01:47"]

1. b3 {[%clk 0:03:00]}  e5 {[%clk 0:02:59]} 2. Bb2 {[%clk 0:03:00]}  Nc6 {[%clk 0:02:59]} 3. e3 {[%clk 0:03:01]}  Nf6 {[%clk 0:03:00]} 4. Bb5 {[%clk 0:03:01]}  Bd6 {[%clk 0:03:00]} 5. Na3 {[%clk 0:03:01]}  a6 {[%clk 0:03:00]} 6. Be2 {[%clk 0:03:01]}  Na5 {[%clk 0:02:59]} 7. c4 {[%clk 0:02:57]}  Qe7 {[%clk 0:02:58]} 8. Nc2 {[%clk 0:02:57]}  b5 {[%clk 0:02:57]} 9. Nf3 {[%clk 0:02:47]}  bxc4 {[%clk 0:02:56]} 10. bxc4 {[%clk 0:02:47]}  O-O {[%clk 0:02:55]} 11. c5 {[%clk 0:02:39]}  Bxc5 {[%clk 0:02:54]} 12. Bxe5 {[%clk 0:02:38]}  Bb7 {[%clk 0:02:48]} 13. Bxc7 {[%clk 0:02:27]}  Nc6 {[%clk 0:02:39]} 14. Bg3 {[%clk 0:02:20]}  Ne4 {[%clk 0:02:39]} 15. O-O {[%clk 0:02:19]}  d5 {[%clk 0:02:39]} 16. Rb1 {[%clk 0:02:06]}  Rac8 {[%clk 0:02:16]} 17. Bd3 {[%clk 0:01:52]}  f5 {[%clk 0:02:09]} 18. Bxe4 {[%clk 0:01:45]}  fxe4 {[%clk 0:02:09]} 19. Nfd4 {[%clk 0:01:45]}  Nxd4 {[%clk 0:02:06]} 20. Nxd4 {[%clk 0:01:45]}  Bxd4 {[%clk 0:02:06]} 21. exd4 {[%clk 0:01:46]}  Bc6 {[%clk 0:02:06]} 22. Be5 {[%clk 0:01:40]}  Bb5 {[%clk 0:02:05]} 23. Re1 {[%clk 0:01:40]}  Bd3 {[%clk 0:02:05]} 24. Rb6 {[%clk 0:01:33]}  Qf7 {[%clk 0:02:05]} 25. Bg3 {[%clk 0:01:21]}  Qa7 {[%clk 0:02:04]} 26. Qb3 {[%clk 0:01:11]}  Bc4 {[%clk 0:01:59]} 27. Qb4 {[%clk 0:01:07]}  a5 {[%clk 0:01:58]} 28. Qb2 {[%clk 0:01:00]}  a4 {[%clk 0:01:56]} 29. Rb7 {[%clk 0:00:56]}  Qa6 {[%clk 0:01:55]} 30. Be5 {[%clk 0:00:55]}  Rf7 {[%clk 0:01:54]} 31. Rb1 {[%clk 0:00:50]}  a3 {[%clk 0:01:53]} 32. Qb4 {[%clk 0:00:39]}  Rxb7 {[%clk 0:01:52]} 33. Qxb7 {[%clk 0:00:39]}  Qxb7 {[%clk 0:01:52]} 34. Rxb7 {[%clk 0:00:39]}  Bxa2 {[%clk 0:01:52]} 35. Rxg7+ {[%clk 0:00:35]}  Kf8 {[%clk 0:01:52]} 36. h4 {[%clk 0:00:33]}  Rc1+ {[%clk 0:01:51]} 37. Kh2 {[%clk 0:00:32]}  Bc4 {[%clk 0:01:52]} 38. Rxh7 {[%clk 0:00:10]}  a2 {[%clk 0:01:51]} 39. Ra7 {[%clk 0:00:11]}  a1=Q {[%clk 0:01:51]} 40. Rxa1 {[%clk 0:00:12]}  Rxa1 {[%clk 0:01:51]} 41. Kg3 {[%clk 0:00:09]}  Ra3+ {[%clk 0:01:51]} 42. f3 {[%clk 0:00:09]}  Rd3 {[%clk 0:01:52]} 43. Kf4 {[%clk 0:00:08]}  exf3 {[%clk 0:01:51]} 44. gxf3 {[%clk 0:00:08]}  Rxd2 {[%clk 0:01:52]} 45. h5 {[%clk 0:00:09]}  Rh2 {[%clk 0:01:52]} 46. Kg5 {[%clk 0:00:09]}  Rg2+ {[%clk 0:01:52]} 47. Kf6 {[%clk 0:00:07]}  Bd3 {[%clk 0:01:53]} 48. f4 {[%clk 0:00:07]}  Rh2 {[%clk 0:01:50]} 49. Kg5 {[%clk 0:00:05]}  Kf7 {[%clk 0:01:50]} 50. f5 {[%clk 0:00:05]}  Rg2+ {[%clk 0:01:50]} 51. Kh6 {[%clk 0:00:04]}  Bxf5 {[%clk 0:01:50]} 52. Bf6 {[%clk 0:00:01]}  Rg8 {[%clk 0:01:49]} 53. Bg7 {[%clk 0:00:01]}  Bg4 {[%clk 0:01:47]} 0-1


[Site "https://www.chess.com"]

[Event "Titled Tuesday Blitz January 31 Late 2023"]
[White "Onslow, Alfie"]
[Black "Ismagilov, Damir"]
[WhiteFideId "436976"]
[BlackFideId "34199982"]
[WhiteElo "2157"]
[BlackElo "2156"]
[Result "0-1"]
[Round "03"]
[TimeControl "180+2"]
[Date "2023.01.31"]
[WhiteClock "0:00:02"]
[BlackClock "0:00:22"]

1. e4 {[%clk 0:02:40]}  c6 {[%clk 0:02:59]} 2. Nf3 {[%clk 0:02:39]}  d5 {[%clk 0:02:58]} 3. exd5 {[%clk 0:02:38]}  cxd5 {[%clk 0:02:59]} 4. Ne5 {[%clk 0:02:38]}  Nc6 {[%clk 0:02:57]} 5. d4 {[%clk 0:02:38]}  e6 {[%clk 0:02:53]} 6. Bb5 {[%clk 0:02:35]}  Bd7 {[%clk 0:02:53]} 7. Nxd7 {[%clk 0:02:35]}  Qxd7 {[%clk 0:02:54]} 8. c3 {[%clk 0:02:36]}  Nf6 {[%clk 0:02:53]} 9. O-O {[%clk 0:02:35]}  Bd6 {[%clk 0:02:52]} 10. Nd2 {[%clk 0:02:34]}  O-O {[%clk 0:02:50]} 11. Re1 {[%clk 0:02:34]}  a6 {[%clk 0:02:50]} 12. Bd3 {[%clk 0:02:34]}  b5 {[%clk 0:02:49]} 13. Nf3 {[%clk 0:02:32]}  h6 {[%clk 0:02:47]} 14. h3 {[%clk 0:02:32]}  b4 {[%clk 0:02:46]} 15. Ne5 {[%clk 0:02:26]}  Qc7 {[%clk 0:02:44]} 16. Bf4 {[%clk 0:02:14]}  Nd7 {[%clk 0:02:36]} 17. Qh5 {[%clk 0:02:06]}  bxc3 {[%clk 0:02:23]} 18. Bxh6 {[%clk 0:01:47]}  Ncxe5 {[%clk 0:01:51]} 19. dxe5 {[%clk 0:01:06]}  Nxe5 {[%clk 0:01:48]} 20. Bxg7 {[%clk 0:00:49]}  Kxg7 {[%clk 0:01:40]} 21. Qh4 {[%clk 0:00:50]}  Ng6 {[%clk 0:01:29]} 22. Bxg6 {[%clk 0:00:38]}  fxg6 {[%clk 0:01:23]} 23. Rxe6 {[%clk 0:00:35]}  cxb2 {[%clk 0:01:12]} 24. Rae1 {[%clk 0:00:27]}  b1=Q {[%clk 0:01:06]} 25. Rxb1 {[%clk 0:00:20]}  Rae8 {[%clk 0:00:51]} 26. Qd4+ {[%clk 0:00:17]}  Be5 {[%clk 0:00:49]} 27. Qxd5 {[%clk 0:00:17]}  Rxe6 {[%clk 0:00:42]} 28. Rb7 {[%clk 0:00:17]}  Re7 {[%clk 0:00:29]} 29. Rxc7 {[%clk 0:00:15]}  Bxc7 {[%clk 0:00:30]} 30. Qd4+ {[%clk 0:00:10]}  Be5 {[%clk 0:00:29]} 31. Qc4 {[%clk 0:00:09]}  Rd8 {[%clk 0:00:28]} 32. g3 {[%clk 0:00:09]}  Rf7 {[%clk 0:00:24]} 33. Qxa6 {[%clk 0:00:08]}  Rd1+ {[%clk 0:00:24]} 34. Kg2 {[%clk 0:00:09]}  Rd2 {[%clk 0:00:24]} 35. Qb6 {[%clk 0:00:07]}  Bd4 {[%clk 0:00:23]} 36. Qb4 {[%clk 0:00:02]}  Rfxf2+ {[%clk 0:00:22]} 37. Kg1 {[%clk 0:00:02]} 0-1


[Site "https://www.chess.com"]

[Event "Titled Tuesday Blitz January 31 Late 2023"]
[White "Aarav Dengla"]
[Black "Bernat, David"]
[WhiteFideId "45059756"]
[BlackFideId "2099225"]
[WhiteElo "2343"]
[BlackElo "1862"]
[Result "1/2-1/2"]
[Round "03"]
[TimeControl "180+2"]
[Date "2023.01.31"]
[WhiteClock "0:00:11"]
[BlackClock "0:00:11"]

1. e4 {[%clk 0:03:00]}  c5 {[%clk 0:02:59]} 2. Nf3 {[%clk 0:03:00]}  g6 {[%clk 0:03:00]} 3. d4 {[%clk 0:02:56]}  cxd4 {[%clk 0:03:01]} 4. Nxd4 {[%clk 0:02:56]}  Nc6 {[%clk 0:03:01]} 5. c4 {[%clk 0:02:56]}  Nf6 {[%clk 0:03:01]} 6. Nc3 {[%clk 0:02:55]}  d6 {[%clk 0:03:01]} 7. Be3 {[%clk 0:02:53]}  Ng4 {[%clk 0:02:57]} 8. Nxc6 {[%clk 0:02:46]}  bxc6 {[%clk 0:02:55]} 9. Qd4 {[%clk 0:02:47]}  Nxe3 {[%clk 0:02:45]} 10. Qxe3 {[%clk 0:02:31]}  Bg7 {[%clk 0:02:43]} 11. h4 {[%clk 0:02:31]}  h5 {[%clk 0:02:42]} 12. Be2 {[%clk 0:02:29]}  Qb6 {[%clk 0:02:39]} 13. Qd2 {[%clk 0:02:28]}  Rb8 {[%clk 0:02:38]} 14. Nd1 {[%clk 0:02:23]}  Be6 {[%clk 0:02:22]} 15. Rc1 {[%clk 0:02:20]}  Bh6 {[%clk 0:01:55]} 16. f4 {[%clk 0:02:14]}  O-O {[%clk 0:01:40]} 17. b3 {[%clk 0:02:10]}  Rfd8 {[%clk 0:01:35]} 18. Rc3 {[%clk 0:02:07]}  d5 {[%clk 0:01:33]} 19. exd5 {[%clk 0:02:05]}  cxd5 {[%clk 0:01:34]} 20. c5 {[%clk 0:02:05]}  Qc7 {[%clk 0:01:33]} 21. O-O {[%clk 0:02:03]}  d4 {[%clk 0:01:31]} 22. Rc1 {[%clk 0:02:01]}  Bf5 {[%clk 0:01:14]} 23. Nb2 {[%clk 0:01:51]}  e5 {[%clk 0:01:14]} 24. Nc4 {[%clk 0:01:26]}  Bxf4 {[%clk 0:00:49]} 25. Rxf4 {[%clk 0:01:21]}  exf4 {[%clk 0:00:50]} 26. Nd6 {[%clk 0:01:22]}  Rxd6 {[%clk 0:00:46]} 27. cxd6 {[%clk 0:01:21]}  Qxd6 {[%clk 0:00:47]} 28. Rc4 {[%clk 0:01:20]}  d3 {[%clk 0:00:43]} 29. Bf3 {[%clk 0:01:18]}  Qb6+ {[%clk 0:00:41]} 30. Qf2 {[%clk 0:01:08]}  Qe3 {[%clk 0:00:41]} 31. Bd1 {[%clk 0:01:00]}  Re8 {[%clk 0:00:14]} 32. Rxf4 {[%clk 0:00:50]}  Qxf2+ {[%clk 0:00:08]} 33. Kxf2 {[%clk 0:00:46]}  Rc8 {[%clk 0:00:05]} 34. Rd4 {[%clk 0:00:42]}  Rc1 {[%clk 0:00:05]} 35. Bf3 {[%clk 0:00:36]}  Rc2+ {[%clk 0:00:06]} 36. Kg3 {[%clk 0:00:36]}  Rxa2 {[%clk 0:00:07]} 37. Kf4 {[%clk 0:00:36]}  a5 {[%clk 0:00:06]} 38. Kg5 {[%clk 0:00:31]}  Kg7 {[%clk 0:00:06]} 39. Rd5 {[%clk 0:00:31]}  Rb2 {[%clk 0:00:05]} 40. Rxa5 {[%clk 0:00:31]}  Rxb3 {[%clk 0:00:06]} 41. Ra7 {[%clk 0:00:31]}  Kf8 {[%clk 0:00:03]} 42. Bd5 {[%clk 0:00:22]}  Rb5 {[%clk 0:00:01]} 43. Bf3 {[%clk 0:00:10]}  Ke8 {[%clk 0:00:01]} 44. Kf6 {[%clk 0:00:10]}  Be6 {[%clk 0:00:02]} 45. Ra8+ {[%clk 0:00:10]}  Kd7 {[%clk 0:00:02]} 46. Ra7+ {[%clk 0:00:11]}  Kd6 {[%clk 0:00:03]} 47. Ra6+ {[%clk 0:00:11]}  Kc5 {[%clk 0:00:03]} 48. Ra1 {[%clk 0:00:12]}  Rb2 {[%clk 0:00:03]} 49. Ra5+ {[%clk 0:00:11]}  Kb4 {[%clk 0:00:03]} 50. Ra8 {[%clk 0:00:11]}  d2 {[%clk 0:00:03]} 51. Rb8+ {[%clk 0:00:12]}  Kc3 {[%clk 0:00:03]} 52. Rd8 {[%clk 0:00:12]}  Rb6 {[%clk 0:00:04]} 53. Kg7 {[%clk 0:00:11]}  Bf5 {[%clk 0:00:04]} 54. Rd5 {[%clk 0:00:11]}  Re6 {[%clk 0:00:04]} 55. Rc5+ {[%clk 0:00:11]}  Kd4 {[%clk 0:00:04]} 56. Rd5+ {[%clk 0:00:12]}  Ke3 {[%clk 0:00:05]} 57. Rd8 {[%clk 0:00:12]}  Be4 {[%clk 0:00:05]} 58. Bd1 {[%clk 0:00:12]}  Re5 {[%clk 0:00:06]} 59. Kxf7 {[%clk 0:00:12]}  Rd5 {[%clk 0:00:06]} 60. Rxd5 {[%clk 0:00:11]}  Bxd5+ {[%clk 0:00:07]} 61. Kxg6 {[%clk 0:00:12]}  Bxg2 {[%clk 0:00:08]} 62. Kxh5 {[%clk 0:00:12]}  Bf3+ {[%clk 0:00:08]} 63. Bxf3 {[%clk 0:00:12]}  Kxf3 {[%clk 0:00:09]} 64. Kg6 {[%clk 0:00:13]}  d1=Q {[%clk 0:00:10]} 65. h5 {[%clk 0:00:14]}  Qd5 {[%clk 0:00:10]} 66. h6 {[%clk 0:00:14]}  Qe6+ {[%clk 0:00:11]} 67. Kg7 {[%clk 0:00:14]}  Qe7+ {[%clk 0:00:11]} 68. Kg8 {[%clk 0:00:14]}  Qe6+ {[%clk 0:00:11]} 69. Kg7 {[%clk 0:00:14]}  Qg4+ {[%clk 0:00:12]} 70. Kf7 {[%clk 0:00:13]}  Kf4 {[%clk 0:00:12]} 71. h7 {[%clk 0:00:13]}  Qf5+ {[%clk 0:00:12]} 72. Kg7 {[%clk 0:00:14]}  Kg5 {[%clk 0:00:12]} 73. h8=Q {[%clk 0:00:13]}  Qg6+ {[%clk 0:00:10]} 74. Kf8 {[%clk 0:00:12]}  Qf6+ {[%clk 0:00:10]} 75. Qxf6+ {[%clk 0:00:11]}  Kxf6 {[%clk 0:00:11]} 1/2-1/2


[Site "https://www.chess.com"]

[Event "Titled Tuesday Blitz January 31 Late 2023"]
[White "Romero Ruscalleda, Josep"]
[Black "Terletsky, Oleg"]
[WhiteFideId "2231859"]
[BlackFideId "14116774"]
[WhiteElo "2160"]
[BlackElo "2160"]
[Result "0-1"]
[Round "03"]
[TimeControl "180+2"]
[Date "2023.01.31"]
[WhiteClock "0:00:03"]
[BlackClock "0:00:19"]

1. e4 {[%clk 0:03:00]}  e5 {[%clk 0:02:56]} 2. Nf3 {[%clk 0:02:58]}  Nc6 {[%clk 0:02:57]} 3. Bc4 {[%clk 0:02:58]}  Nf6 {[%clk 0:02:56]} 4. d4 {[%clk 0:02:58]}  exd4 {[%clk 0:02:55]} 5. e5 {[%clk 0:02:59]}  d5 {[%clk 0:02:56]} 6. Bb5 {[%clk 0:02:59]}  Ne4 {[%clk 0:02:56]} 7. Nxd4 {[%clk 0:03:00]}  Bc5 {[%clk 0:02:56]} 8. Be3 {[%clk 0:03:00]}  Bd7 {[%clk 0:02:55]} 9. Bxc6 {[%clk 0:03:00]}  bxc6 {[%clk 0:02:56]} 10. O-O {[%clk 0:03:00]}  Qe7 {[%clk 0:02:55]} 11. Re1 {[%clk 0:02:58]}  Bb6 {[%clk 0:02:47]} 12. f3 {[%clk 0:02:46]}  Ng5 {[%clk 0:02:41]} 13. Qd2 {[%clk 0:02:45]}  Ne6 {[%clk 0:02:33]} 14. Nf5 {[%clk 0:02:43]}  Bxe3+ {[%clk 0:02:26]} 15. Qxe3 {[%clk 0:02:39]}  Qb4 {[%clk 0:02:15]} 16. b3 {[%clk 0:02:15]}  O-O {[%clk 0:01:52]} 17. c3 {[%clk 0:02:13]}  Qb6 {[%clk 0:01:52]} 18. Nd2 {[%clk 0:02:09]}  Qxe3+ {[%clk 0:01:43]} 19. Rxe3 {[%clk 0:02:04]}  Rfe8 {[%clk 0:01:43]} 20. Rae1 {[%clk 0:02:02]}  c5 {[%clk 0:01:39]} 21. c4 {[%clk 0:01:40]}  d4 {[%clk 0:01:37]} 22. R3e2 {[%clk 0:01:39]}  Nf4 {[%clk 0:01:34]} 23. Ng3 {[%clk 0:01:26]}  Nxe2+ {[%clk 0:01:33]} 24. Rxe2 {[%clk 0:01:26]}  f6 {[%clk 0:01:28]} 25. f4 {[%clk 0:01:24]}  fxe5 {[%clk 0:01:27]} 26. fxe5 {[%clk 0:01:24]}  a5 {[%clk 0:01:23]} 27. a4 {[%clk 0:01:22]}  Rab8 {[%clk 0:01:21]} 28. h3 {[%clk 0:01:20]}  Bc6 {[%clk 0:01:15]} 29. Nh5 {[%clk 0:01:14]}  Re7 {[%clk 0:01:11]} 30. Nf4 {[%clk 0:01:10]}  Rbe8 {[%clk 0:01:09]} 31. Nd3 {[%clk 0:00:52]}  Bd7 {[%clk 0:00:59]} 32. Nf3 {[%clk 0:00:50]}  Bf5 {[%clk 0:00:52]} 33. Nxc5 {[%clk 0:00:50]}  d3 {[%clk 0:00:52]} 34. Rd2 {[%clk 0:00:48]}  Rxe5 {[%clk 0:00:44]} 35. Nxe5 {[%clk 0:00:47]}  Rxe5 {[%clk 0:00:45]} 36. Nxd3 {[%clk 0:00:44]}  Re3 {[%clk 0:00:44]} 37. Nc5 {[%clk 0:00:43]}  h5 {[%clk 0:00:37]} 38. Kf2 {[%clk 0:00:42]}  Rc3 {[%clk 0:00:34]} 39. Rd5 {[%clk 0:00:25]}  g6 {[%clk 0:00:34]} 40. h4 {[%clk 0:00:17]}  Kf7 {[%clk 0:00:29]} 41. Nb7 {[%clk 0:00:13]}  Rxb3 {[%clk 0:00:26]} 42. Rxa5 {[%clk 0:00:12]}  Be4 {[%clk 0:00:23]} 43. g3 {[%clk 0:00:11]}  Rxb7 {[%clk 0:00:22]} 44. Re5 {[%clk 0:00:10]}  Bf5 {[%clk 0:00:22]} 45. a5 {[%clk 0:00:09]}  Ra7 {[%clk 0:00:22]} 46. Ke3 {[%clk 0:00:09]}  Kf6 {[%clk 0:00:21]} 47. Kd4 {[%clk 0:00:08]}  Be6 {[%clk 0:00:20]} 48. Rg5 {[%clk 0:00:07]}  Bf5 {[%clk 0:00:20]} 49. Kc5 {[%clk 0:00:06]}  Rxa5+ {[%clk 0:00:20]} 50. Kc6 {[%clk 0:00:07]}  Ra4 {[%clk 0:00:19]} 51. c5 {[%clk 0:00:07]}  Rc4 {[%clk 0:00:19]} 52. Kb5 {[%clk 0:00:05]}  Rc1 {[%clk 0:00:19]} 53. Kb4 {[%clk 0:00:04]}  c6 {[%clk 0:00:20]} 54. g4 {[%clk 0:00:03]}  hxg4 {[%clk 0:00:19]} 55. h5 {[%clk 0:00:03]}  Kxg5 {[%clk 0:00:19]} 0-1


[Site "https://www.chess.com"]